[Event "Titled Tuesday Blitz August 22 Late 2023"]
[White "Fiorito, Joaquin"]
[Black "Balla, Tamas-Kristof"]
[WhiteFideId "180173"]
[BlackFideId "1208497"]
[WhiteElo "2583"]
[BlackElo "2428"]
[Result "0-1"]
[Round "10"]
[TimeControl "180+1"]
[Date "2023.08.22"]
[WhiteClock "0:01:39"]
[BlackClock "0:01:24"]
[Board "93"]

1. d4 {[%clk 0:03:00]}  d5 {[%clk 0:02:59]} 2. c4 {[%clk 0:03:01]}  e6 {[%clk 0:03:00]} 3. Nc3 {[%clk 0:03:01]}  c5 {[%clk 0:03:00]} 4. cxd5 {[%clk 0:03:01]}  exd5 {[%clk 0:03:01]} 5. Nf3 {[%clk 0:03:00]}  Nc6 {[%clk 0:03:01]} 6. dxc5 {[%clk 0:02:56]}  d4 {[%clk 0:02:52]} 7. Na4 {[%clk 0:02:56]}  Bxc5 {[%clk 0:02:52]} 8. Nxc5 {[%clk 0:02:57]}  Qa5+ {[%clk 0:02:53]} 9. Qd2 {[%clk 0:02:57]}  Qxc5 {[%clk 0:02:53]} 10. e3 {[%clk 0:02:58]}  dxe3 {[%clk 0:02:42]} 11. Qxe3+ {[%clk 0:02:59]}  Qxe3+ {[%clk 0:02:42]} 12. Bxe3 {[%clk 0:03:00]}  Nf6 {[%clk 0:02:41]} 13. Bb5 {[%clk 0:02:55]}  O-O {[%clk 0:02:39]} 14. Bxc6 {[%clk 0:02:56]}  bxc6 {[%clk 0:02:40]} 15. O-O {[%clk 0:02:56]}  Nd5 {[%clk 0:02:40]} 16. Bc5 {[%clk 0:02:56]}  Re8 {[%clk 0:02:39]} 17. Nd4 {[%clk 0:02:55]}  Ba6 {[%clk 0:02:28]} 18. Rfe1 {[%clk 0:02:55]}  Nf4 {[%clk 0:02:17]} 19. Nxc6 {[%clk 0:02:47]}  Rxe1+ {[%clk 0:01:57]} 20. Rxe1 {[%clk 0:02:47]}  Nd3 {[%clk 0:01:57]} 21. Nb4 {[%clk 0:02:19]}  Nxe1 {[%clk 0:01:56]} 22. Nxa6 {[%clk 0:02:20]}  Nd3 {[%clk 0:01:48]} 23. Ba3 {[%clk 0:02:17]}  Rc8 {[%clk 0:01:44]} 24. h3 {[%clk 0:02:08]}  Rc2 {[%clk 0:01:39]} 25. Bd6 {[%clk 0:01:53]}  Rxb2 {[%clk 0:01:33]} 26. a4 {[%clk 0:01:53]}  Rxf2 {[%clk 0:01:27]} 27. Bb8 {[%clk 0:01:39]}  Ra2 {[%clk 0:01:24]} 0-1


[Site "https://www.chess.com"]

[Event "Titled Tuesday Blitz August 22 Late 2023"]
[White "KSho99"]
[Black "Hilby, Craig"]
[BlackFideId "2062674"]
[WhiteElo "2235"]
[BlackElo "2653"]
[Result "0-1"]
[Round "10"]
[TimeControl "180+1"]
[Date "2023.08.22"]
[WhiteClock "0:00:55"]
[BlackClock "0:02:38"]
[Board "100"]

1. Nf3 {[%clk 0:03:00]}  Nf6 {[%clk 0:02:56]} 2. g3 {[%clk 0:03:00]}  b5 {[%clk 0:02:57]} 3. Bg2 {[%clk 0:03:00]}  Bb7 {[%clk 0:02:57]} 4. O-O {[%clk 0:02:59]}  e6 {[%clk 0:02:58]} 5. d3 {[%clk 0:02:53]}  c5 {[%clk 0:02:58]} 6. a4 {[%clk 0:02:48]}  b4 {[%clk 0:02:53]} 7. e4 {[%clk 0:02:46]}  d6 {[%clk 0:02:52]} 8. e5 {[%clk 0:02:30]}  dxe5 {[%clk 0:02:53]} 9. Nxe5 {[%clk 0:02:30]}  Bxg2 {[%clk 0:02:53]} 10. Kxg2 {[%clk 0:02:31]}  Bd6 {[%clk 0:02:54]} 11. Qf3 {[%clk 0:02:25]}  Nbd7 {[%clk 0:02:43]} 12. Nc6 {[%clk 0:01:54]}  Qc7 {[%clk 0:02:43]} 13. Nd2 {[%clk 0:00:55]}  Rc8 {[%clk 0:02:38]} 0-1


[Site "https://www.chess.com"]

[Event "Titled Tuesday Blitz August 22 Late 2023"]
[White "matenitian"]
[Black "Zampronha, Wladimir Camilo"]
[BlackFideId "2103087"]
[WhiteElo "2500"]
[BlackElo "2296"]
[Result "0-1"]
[Round "10"]
[TimeControl "180+1"]
[Date "2023.08.22"]
[WhiteClock "0:00:00"]
[BlackClock "0:00:08"]
[Board "102"]

1. e4 {[%clk 0:02:18]}  c5 {[%clk 0:02:59]} 2. Nc3 {[%clk 0:02:07]}  Nc6 {[%clk 0:02:58]} 3. Bb5 {[%clk 0:01:57]}  Nd4 {[%clk 0:02:55]} 4. Bc4 {[%clk 0:01:53]}  e6 {[%clk 0:02:56]} 5. Nf3 {[%clk 0:01:32]}  Ne7 {[%clk 0:02:56]} 6. d3 {[%clk 0:01:31]}  d5 {[%clk 0:02:49]} 7. Bb3 {[%clk 0:01:29]}  Nxb3 {[%clk 0:02:43]} 8. axb3 {[%clk 0:01:29]}  Nc6 {[%clk 0:02:42]} 9. O-O {[%clk 0:01:25]}  Be7 {[%clk 0:02:42]} 10. Bf4 {[%clk 0:01:22]}  O-O {[%clk 0:02:18]} 11. h3 {[%clk 0:01:22]}  Bd6 {[%clk 0:02:07]} 12. Bg5 {[%clk 0:01:15]}  f6 {[%clk 0:02:07]} 13. Bd2 {[%clk 0:01:12]}  d4 {[%clk 0:02:06]} 14. Ne2 {[%clk 0:01:10]}  Qc7 {[%clk 0:02:02]} 15. Ne1 {[%clk 0:01:06]}  Bd7 {[%clk 0:02:02]} 16. f4 {[%clk 0:01:05]}  a6 {[%clk 0:02:00]} 17. Nf3 {[%clk 0:01:04]}  Rae8 {[%clk 0:01:59]} 18. Qe1 {[%clk 0:01:03]}  Kh8 {[%clk 0:01:59]} 19. Qh4 {[%clk 0:01:01]}  Be7 {[%clk 0:01:49]} 20. Qh5 {[%clk 0:01:00]}  Rd8 {[%clk 0:01:44]} 21. f5 {[%clk 0:00:50]}  Be8 {[%clk 0:01:39]} 22. Qh4 {[%clk 0:00:45]}  exf5 {[%clk 0:01:36]} 23. exf5 {[%clk 0:00:44]}  Bd6 {[%clk 0:01:33]} 24. b4 {[%clk 0:00:27]}  Nxb4 {[%clk 0:01:28]} 25. Bxb4 {[%clk 0:00:21]}  cxb4 {[%clk 0:01:28]} 26. Nexd4 {[%clk 0:00:18]}  Bc5 {[%clk 0:01:28]} 27. c3 {[%clk 0:00:17]}  bxc3 {[%clk 0:01:27]} 28. bxc3 {[%clk 0:00:18]}  Bf7 {[%clk 0:01:20]} 29. Kh1 {[%clk 0:00:18]}  Rfe8 {[%clk 0:01:19]} 30. Rac1 {[%clk 0:00:17]}  Qd7 {[%clk 0:01:16]} 31. Qg4 {[%clk 0:00:15]}  Qd5 {[%clk 0:00:58]} 32. Rfe1 {[%clk 0:00:12]}  b5 {[%clk 0:00:48]} 33. Qf4 {[%clk 0:00:10]}  b4 {[%clk 0:00:44]} 34. c4 {[%clk 0:00:09]}  Qd7 {[%clk 0:00:43]} 35. Rxe8+ {[%clk 0:00:08]}  Rxe8 {[%clk 0:00:42]} 36. Rd1 {[%clk 0:00:06]}  Bxd4 {[%clk 0:00:26]} 37. Nxd4 {[%clk 0:00:06]}  a5 {[%clk 0:00:23]} 38. Nb5 {[%clk 0:00:04]}  a4 {[%clk 0:00:19]} 39. Nd6 {[%clk 0:00:03]}  Rf8 {[%clk 0:00:16]} 40. Nxf7+ {[%clk 0:00:03]}  Qxf7 {[%clk 0:00:15]} 41. Qd6 {[%clk 0:00:02]}  b3 {[%clk 0:00:12]} 42. Qb4 {[%clk 0:00:01]}  Ra8 {[%clk 0:00:10]} 43. Ra1 {[%clk 0:00:01]}  Qd7 {[%clk 0:00:09]} 44. Qxb3 {[%clk 0:00:00]}  h6 {[%clk 0:00:08]} 0-1


[Site "https://www.chess.com"]

[Event "Titled Tuesday Blitz August 22 Late 2023"]
[White "Ochkoos, Jura"]
[Black "Mikhaylova, Irina"]
[WhiteFideId "2601214"]
[BlackFideId "4109040"]
[WhiteElo "2382"]
[BlackElo "2282"]
[Result "0-1"]
[Round "10"]
[TimeControl "180+1"]
[Date "2023.08.22"]
[WhiteClock "0:01:19"]
[BlackClock "0:00:40"]
[Board "105"]

1. e4 {[%clk 0:02:51]}  c5 {[%clk 0:03:00]} 2. Nf3 {[%clk 0:02:51]}  Nc6 {[%clk 0:03:00]} 3. d4 {[%clk 0:02:52]}  cxd4 {[%clk 0:03:00]} 4. Nxd4 {[%clk 0:02:52]}  e5 {[%clk 0:03:01]} 5. Nb5 {[%clk 0:02:52]}  d6 {[%clk 0:03:01]} 6. c4 {[%clk 0:02:50]}  Be7 {[%clk 0:03:01]} 7. N5c3 {[%clk 0:02:51]}  Be6 {[%clk 0:02:59]} 8. Bd3 {[%clk 0:02:50]}  Bg5 {[%clk 0:02:59]} 9. O-O {[%clk 0:02:48]}  Bxc1 {[%clk 0:02:59]} 10. Qxc1 {[%clk 0:02:48]}  Nf6 {[%clk 0:02:59]} 11. Na3 {[%clk 0:02:46]}  O-O {[%clk 0:02:58]} 12. Nc2 {[%clk 0:02:43]}  a6 {[%clk 0:02:57]} 13. Qe3 {[%clk 0:02:40]}  Qa5 {[%clk 0:02:54]} 14. Nd5 {[%clk 0:02:36]}  Qd8 {[%clk 0:02:42]} 15. b4 {[%clk 0:02:28]}  Nd7 {[%clk 0:02:41]} 16. Rac1 {[%clk 0:02:20]}  Rc8 {[%clk 0:02:34]} 17. Rfd1 {[%clk 0:02:16]}  Ne7 {[%clk 0:02:22]} 18. a3 {[%clk 0:02:14]}  Ng6 {[%clk 0:02:19]} 19. g3 {[%clk 0:02:06]}  h6 {[%clk 0:02:17]} 20. Qe2 {[%clk 0:01:58]}  Bxd5 {[%clk 0:01:58]} 21. cxd5 {[%clk 0:01:54]}  Qg5 {[%clk 0:01:35]} 22. Kh1 {[%clk 0:01:53]}  Rc7 {[%clk 0:01:19]} 23. Ne3 {[%clk 0:01:52]}  Qd8 {[%clk 0:01:05]} 24. Rc2 {[%clk 0:01:41]}  Qb8 {[%clk 0:00:58]} 25. Rdc1 {[%clk 0:01:40]}  Rfc8 {[%clk 0:00:58]} 26. Nf5 {[%clk 0:01:37]}  Rxc2 {[%clk 0:00:54]} 27. Rxc2 {[%clk 0:01:37]}  Rxc2 {[%clk 0:00:55]} 28. Qxc2 {[%clk 0:01:35]}  Kf8 {[%clk 0:00:55]} 29. Bf1 {[%clk 0:01:28]}  Ne7 {[%clk 0:00:52]} 30. Ne3 {[%clk 0:01:26]}  Qc8 {[%clk 0:00:48]} 31. Qd2 {[%clk 0:01:26]}  Nb6 {[%clk 0:00:44]} 32. Bh3 {[%clk 0:01:26]}  Qxh3 {[%clk 0:00:43]} 33. a4 {[%clk 0:01:19]}  Nxa4 {[%clk 0:00:40]} 0-1


[Site "https://www.chess.com"]

[Event "Titled Tuesday Blitz August 22 Late 2023"]
[White "Haitin, Ilja"]
[Black "Alfaro, William"]
[WhiteFideId "4501764"]
[BlackFideId "6100457"]
[WhiteElo "2361"]
[BlackElo "2277"]
[Result "1-0"]
[Round "10"]
[TimeControl "180+1"]
[Date "2023.08.22"]
[WhiteClock "0:01:29"]
[BlackClock "0:00:04"]
[Board "106"]

1. Nf3 {[%clk 0:02:58]}  g6 {[%clk 0:02:58]} 2. h4 {[%clk 0:02:57]}  h5 {[%clk 0:02:54]} 3. g3 {[%clk 0:02:56]}  Bg7 {[%clk 0:02:54]} 4. Bg2 {[%clk 0:02:56]}  e5 {[%clk 0:02:51]} 5. d3 {[%clk 0:02:56]}  d5 {[%clk 0:02:49]} 6. O-O {[%clk 0:02:56]}  Ne7 {[%clk 0:02:49]} 7. c4 {[%clk 0:02:56]}  c6 {[%clk 0:02:49]} 8. Nc3 {[%clk 0:02:55]}  O-O {[%clk 0:02:48]} 9. Bg5 {[%clk 0:02:55]}  Be6 {[%clk 0:02:27]} 10. b3 {[%clk 0:02:52]}  e4 {[%clk 0:02:24]} 11. dxe4 {[%clk 0:02:52]}  Bxc3 {[%clk 0:02:23]} 12. Rc1 {[%clk 0:02:51]}  Bb2 {[%clk 0:02:20]} 13. Rb1 {[%clk 0:02:48]}  Bg7 {[%clk 0:02:20]} 14. exd5 {[%clk 0:02:47]}  cxd5 {[%clk 0:02:20]} 15. cxd5 {[%clk 0:02:44]}  Bf5 {[%clk 0:02:10]} 16. Rc1 {[%clk 0:02:42]}  Qd6 {[%clk 0:02:09]} 17. Nd4 {[%clk 0:02:25]}  Bg4 {[%clk 0:01:37]} 18. Nb5 {[%clk 0:02:18]}  Qe5 {[%clk 0:01:29]} 19. Nc7 {[%clk 0:02:03]}  Bxe2 {[%clk 0:01:22]} 20. Qd2 {[%clk 0:01:57]}  Bxf1 {[%clk 0:01:19]} 21. Kxf1 {[%clk 0:01:56]}  f6 {[%clk 0:00:52]} 22. Bf4 {[%clk 0:01:52]}  Qf5 {[%clk 0:00:48]} 23. Nxa8 {[%clk 0:01:50]}  Na6 {[%clk 0:00:47]} 24. d6 {[%clk 0:01:46]}  Qb5+ {[%clk 0:00:36]} 25. Kg1 {[%clk 0:01:42]}  Nc6 {[%clk 0:00:31]} 26. Nc7 {[%clk 0:01:38]}  Nxc7 {[%clk 0:00:30]} 27. dxc7 {[%clk 0:01:38]}  Rc8 {[%clk 0:00:04]} 28. Qd7 {[%clk 0:01:29]} 1-0


[Site "https://www.chess.com"]

[Event "Titled Tuesday Blitz August 22 Late 2023"]
[White "Akhayan, Ruben"]
[Black "rionelG"]
[WhiteFideId "204439"]
[WhiteElo "2265"]
[BlackElo "2338"]
[Result "0-1"]
[Round "10"]
[TimeControl "180+1"]
[Date "2023.08.22"]
[WhiteClock "0:00:00"]
[BlackClock "0:00:14"]
[Board "108"]

1. e4 {[%clk 0:02:40]}  c5 {[%clk 0:02:45]} 2. Nf3 {[%clk 0:02:39]}  d6 {[%clk 0:02:45]} 3. d4 {[%clk 0:02:39]}  cxd4 {[%clk 0:02:46]} 4. Nxd4 {[%clk 0:02:39]}  Nf6 {[%clk 0:02:47]} 5. Nc3 {[%clk 0:02:40]}  a6 {[%clk 0:02:47]} 6. Bc4 {[%clk 0:02:40]}  e6 {[%clk 0:02:47]} 7. Bb3 {[%clk 0:02:41]}  Nbd7 {[%clk 0:02:45]} 8. O-O {[%clk 0:02:39]}  Nc5 {[%clk 0:02:45]} 9. f4 {[%clk 0:02:39]}  Be7 {[%clk 0:02:45]} 10. e5 {[%clk 0:02:39]}  dxe5 {[%clk 0:02:37]} 11. fxe5 {[%clk 0:02:39]}  Nfd7 {[%clk 0:02:37]} 12. Be3 {[%clk 0:02:40]}  O-O {[%clk 0:02:33]} 13. Qh5 {[%clk 0:02:37]}  Nxb3 {[%clk 0:02:17]} 14. axb3 {[%clk 0:02:32]}  Qc7 {[%clk 0:02:18]} 15. Nf3 {[%clk 0:01:49]}  Bc5 {[%clk 0:01:54]} 16. Bxc5 {[%clk 0:01:48]}  Qxc5+ {[%clk 0:01:55]} 17. Kh1 {[%clk 0:01:48]}  Qe7 {[%clk 0:01:43]} 18. Ne4 {[%clk 0:01:46]}  b5 {[%clk 0:01:21]} 19. Rad1 {[%clk 0:01:41]}  Bb7 {[%clk 0:01:17]} 20. Rxd7 {[%clk 0:01:39]}  Qxd7 {[%clk 0:00:53]} 21. Nf6+ {[%clk 0:01:39]}  gxf6 {[%clk 0:00:54]} 22. exf6 {[%clk 0:01:39]}  Kh8 {[%clk 0:00:41]} 23. Ng5 {[%clk 0:01:34]}  Be4 {[%clk 0:00:40]} 24. Nxe4 {[%clk 0:01:26]}  Qc6 {[%clk 0:00:28]} 25. Ng5 {[%clk 0:01:17]}  Qxc2 {[%clk 0:00:28]} 26. Nxf7+ {[%clk 0:00:59]}  Kg8 {[%clk 0:00:20]} 27. Nh6+ {[%clk 0:00:49]}  Kh8 {[%clk 0:00:20]} 28. f7 {[%clk 0:00:40]}  Qg6 {[%clk 0:00:19]} 29. Qe5+ {[%clk 0:00:34]}  Qg7 {[%clk 0:00:19]} 30. Qxe6 {[%clk 0:00:34]}  Ra7 {[%clk 0:00:18]} 31. Nf5 {[%clk 0:00:31]}  Qxf7 {[%clk 0:00:17]} 32. Qe5+ {[%clk 0:00:31]}  Qf6 {[%clk 0:00:18]} 33. Qe2 {[%clk 0:00:18]}  Raf7 {[%clk 0:00:16]} 34. g4 {[%clk 0:00:15]}  Qg5 {[%clk 0:00:16]} 35. Qf3 {[%clk 0:00:10]}  h5 {[%clk 0:00:15]} 36. Qc3+ {[%clk 0:00:09]}  Kh7 {[%clk 0:00:15]} 37. h3 {[%clk 0:00:06]}  hxg4 {[%clk 0:00:15]} 38. hxg4 {[%clk 0:00:06]}  Qxg4 {[%clk 0:00:15]} 39. Rf2 {[%clk 0:00:02]}  Rxf5 {[%clk 0:00:14]} 40. Rh2+ {[%clk 0:00:00]}  Rh5 {[%clk 0:00:14]} 0-1


[Site "https://www.chess.com"]

[Event "Titled Tuesday Blitz August 22 Late 2023"]
[White "Cooper, Aaron"]
[Black "Fernandez, Maria Florencia"]
[WhiteFideId "2634945"]
[BlackFideId "116459"]
[WhiteElo "2259"]
[BlackElo "2336"]
[Result "0-1"]
[Round "10"]
[TimeControl "180+1"]
[Date "2023.08.22"]
[WhiteClock "0:00:47"]
[BlackClock "0:00:26"]
[Board "109"]

1. e4 {[%clk 0:03:00]}  c5 {[%clk 0:02:59]} 2. Nf3 {[%clk 0:03:00]}  d6 {[%clk 0:02:59]} 3. d4 {[%clk 0:03:00]}  cxd4 {[%clk 0:03:00]} 4. Nxd4 {[%clk 0:03:01]}  Nf6 {[%clk 0:03:01]} 5. Nc3 {[%clk 0:03:01]}  g6 {[%clk 0:03:02]} 6. Be2 {[%clk 0:02:59]}  Bg7 {[%clk 0:03:02]} 7. Be3 {[%clk 0:02:59]}  O-O {[%clk 0:03:02]} 8. O-O {[%clk 0:02:59]}  Nc6 {[%clk 0:03:03]} 9. h3 {[%clk 0:02:59]}  Bd7 {[%clk 0:03:02]} 10. Qd2 {[%clk 0:02:58]}  a6 {[%clk 0:03:01]} 11. f4 {[%clk 0:02:56]}  b5 {[%clk 0:03:01]} 12. a3 {[%clk 0:02:55]}  Rc8 {[%clk 0:02:53]} 13. Nb3 {[%clk 0:02:51]}  Qc7 {[%clk 0:02:34]} 14. Rad1 {[%clk 0:02:48]}  Be6 {[%clk 0:02:33]} 15. Nd4 {[%clk 0:02:45]}  Nxd4 {[%clk 0:02:23]} 16. Bxd4 {[%clk 0:02:44]}  Bc4 {[%clk 0:02:23]} 17. e5 {[%clk 0:02:20]}  dxe5 {[%clk 0:02:17]} 18. Bxe5 {[%clk 0:02:18]}  Qb6+ {[%clk 0:02:06]} 19. Kh2 {[%clk 0:02:17]}  Rfd8 {[%clk 0:01:57]} 20. Qe1 {[%clk 0:02:17]}  Rxd1 {[%clk 0:01:52]} 21. Qxd1 {[%clk 0:02:15]}  Rd8 {[%clk 0:01:45]} 22. Qe1 {[%clk 0:02:16]}  Bxe2 {[%clk 0:01:27]} 23. Qxe2 {[%clk 0:02:15]}  Nh5 {[%clk 0:01:26]} 24. Bxg7 {[%clk 0:02:11]}  Nxg7 {[%clk 0:01:23]} 25. Qxe7 {[%clk 0:02:11]}  Nf5 {[%clk 0:01:22]} 26. Qg5 {[%clk 0:02:08]}  h6 {[%clk 0:01:16]} 27. Qg4 {[%clk 0:01:44]}  Ne3 {[%clk 0:01:14]} 28. Qf3 {[%clk 0:01:44]}  Nxf1+ {[%clk 0:01:14]} 29. Qxf1 {[%clk 0:01:45]}  Rd2 {[%clk 0:01:08]} 30. Ne4 {[%clk 0:01:37]}  Rxc2 {[%clk 0:01:03]} 31. Qd3 {[%clk 0:01:37]}  Rc1 {[%clk 0:00:53]} 32. b4 {[%clk 0:01:11]}  Qg1+ {[%clk 0:00:49]} 33. Kg3 {[%clk 0:01:11]}  Qe1+ {[%clk 0:00:46]} 34. Kh2 {[%clk 0:01:11]}  Qg1+ {[%clk 0:00:26]} 35. Kg3 {[%clk 0:01:11]}  Qd1 {[%clk 0:00:26]} 36. Qe3 {[%clk 0:00:57]}  Qe1+ {[%clk 0:00:26]} 37. Qxe1 {[%clk 0:00:53]}  Rxe1 {[%clk 0:00:26]} 38. Nc5 {[%clk 0:00:54]}  Ra1 {[%clk 0:00:25]} 39. Nxa6 {[%clk 0:00:54]}  Rxa3+ {[%clk 0:00:26]} 40. Kg4 {[%clk 0:00:47]}  Rxa6 {[%clk 0:00:26]} 0-1


[Site "https://www.chess.com"]

[Event "Titled Tuesday Blitz August 22 Late 2023"]
[White "Acikel, Mert"]
[Black "Navyblue1"]
[WhiteFideId "12956465"]
[WhiteElo "2308"]
[BlackElo "2052"]
[Result "1-0"]
[Round "10"]
[TimeControl "180+1"]
[Date "2023.08.22"]
[WhiteClock "0:02:44"]
[BlackClock "0:01:17"]
[Board "111"]

1. e4 {[%clk 0:03:00]}  c5 {[%clk 0:02:57]} 2. c3 {[%clk 0:02:59]}  Nf6 {[%clk 0:02:57]} 3. e5 {[%clk 0:02:59]}  Nd5 {[%clk 0:02:57]} 4. d4 {[%clk 0:03:00]}  cxd4 {[%clk 0:02:58]} 5. Nf3 {[%clk 0:03:00]}  Nc6 {[%clk 0:02:56]} 6. Bc4 {[%clk 0:03:00]}  Nb6 {[%clk 0:02:55]} 7. Bb3 {[%clk 0:03:01]}  dxc3 {[%clk 0:02:23]} 8. Nxc3 {[%clk 0:03:01]}  e6 {[%clk 0:02:23]} 9. O-O {[%clk 0:03:00]}  d5 {[%clk 0:02:21]} 10. exd6 {[%clk 0:02:58]}  Qxd6 {[%clk 0:02:20]} 11. Nb5 {[%clk 0:02:57]}  Qb8 {[%clk 0:01:41]} 12. g3 {[%clk 0:02:57]}  a6 {[%clk 0:01:32]} 13. Bf4 {[%clk 0:02:57]}  e5 {[%clk 0:01:32]} 14. Re1 {[%clk 0:02:49]}  axb5 {[%clk 0:01:31]} 15. Nxe5 {[%clk 0:02:49]}  Nxe5 {[%clk 0:01:19]} 16. Bxe5 {[%clk 0:02:44]}  Qxe5 {[%clk 0:01:19]} 17. Rxe5+ {[%clk 0:02:44]}  Be6 {[%clk 0:01:19]} 18. Bxe6 {[%clk 0:02:44]}  fxe6 {[%clk 0:01:17]} 19. Rxe6+ {[%clk 0:02:44]} 1-0


[Site "https://www.chess.com"]

[Event "Titled Tuesday Blitz August 22 Late 2023"]
[White "Kohler, Aran"]
[Black "Shapiro, Daniel"]
[WhiteFideId "1002856"]
[BlackFideId "2001780"]
[WhiteElo "2256"]
[BlackElo "2279"]
[Result "1-0"]
[Round "10"]
[TimeControl "180+1"]
[Date "2023.08.22"]
[WhiteClock "0:00:44"]
[BlackClock "0:00:00"]
[Board "112"]

1. e4 {[%clk 0:02:59]}  c5 {[%clk 0:02:59]} 2. Nc3 {[%clk 0:02:57]}  a6 {[%clk 0:02:58]} 3. a4 {[%clk 0:02:56]}  b6 {[%clk 0:02:57]} 4. f4 {[%clk 0:02:55]}  Bb7 {[%clk 0:02:57]} 5. Nf3 {[%clk 0:02:54]}  e6 {[%clk 0:02:55]} 6. Bc4 {[%clk 0:02:54]}  Ne7 {[%clk 0:02:53]} 7. d3 {[%clk 0:02:54]}  d5 {[%clk 0:02:53]} 8. Ba2 {[%clk 0:02:54]}  Nbc6 {[%clk 0:02:51]} 9. O-O {[%clk 0:02:46]}  g6 {[%clk 0:02:51]} 10. f5 {[%clk 0:02:28]}  gxf5 {[%clk 0:02:41]} 11. Bg5 {[%clk 0:02:26]}  Qd7 {[%clk 0:02:25]} 12. Bf6 {[%clk 0:02:16]}  Rg8 {[%clk 0:02:23]} 13. exd5 {[%clk 0:02:15]}  exd5 {[%clk 0:02:14]} 14. Qe2 {[%clk 0:02:04]}  O-O-O {[%clk 0:02:00]} 15. Rae1 {[%clk 0:01:51]}  Rg6 {[%clk 0:01:50]} 16. Bh4 {[%clk 0:01:49]}  Re6 {[%clk 0:01:49]} 17. Qf2 {[%clk 0:01:49]}  Re8 {[%clk 0:01:38]} 18. Ng5 {[%clk 0:01:46]}  Rxe1 {[%clk 0:01:33]} 19. Rxe1 {[%clk 0:01:46]}  d4 {[%clk 0:01:12]} 20. Nd5 {[%clk 0:01:36]}  Nxd5 {[%clk 0:01:03]} 21. Rxe8+ {[%clk 0:01:37]}  Qxe8 {[%clk 0:01:03]} 22. Bxd5 {[%clk 0:01:37]}  Qd7 {[%clk 0:00:53]} 23. Bxf7 {[%clk 0:01:33]}  Nd8 {[%clk 0:00:43]} 24. Bb3 {[%clk 0:01:24]}  Bh6 {[%clk 0:00:42]} 25. Kh1 {[%clk 0:01:18]}  Bd5 {[%clk 0:00:34]} 26. Bxd5 {[%clk 0:01:13]}  Qxd5 {[%clk 0:00:34]} 27. Nf3 {[%clk 0:01:12]}  Ne6 {[%clk 0:00:23]} 28. b3 {[%clk 0:01:07]}  b5 {[%clk 0:00:23]} 29. axb5 {[%clk 0:01:06]}  axb5 {[%clk 0:00:23]} 30. Bf6 {[%clk 0:01:03]}  Bf8 {[%clk 0:00:17]} 31. Qg3 {[%clk 0:00:58]}  Nc7 {[%clk 0:00:16]} 32. Be5 {[%clk 0:00:54]}  Na6 {[%clk 0:00:16]} 33. Qf4 {[%clk 0:00:52]}  Qe6 {[%clk 0:00:14]} 34. Ng5 {[%clk 0:00:53]}  Qd7 {[%clk 0:00:13]} 35. Qf3 {[%clk 0:00:51]}  Kd8 {[%clk 0:00:10]} 36. Qa8+ {[%clk 0:00:49]}  Qc8 {[%clk 0:00:10]} 37. Ne6+ {[%clk 0:00:44]}  Kd7 {[%clk 0:00:00]} 38. Nxf8+ {[%clk 0:00:44]} 1-0


[Site "https://www.chess.com"]

[Event "Titled Tuesday Blitz August 22 Late 2023"]
[White "laskakid"]
[Black "Saucey, Michel"]
[BlackFideId "601845"]
[WhiteElo "2135"]
[BlackElo "2262"]
[Result "0-1"]
[Round "10"]
[TimeControl "180+1"]
[Date "2023.08.22"]
[WhiteClock "0:00:13"]
[BlackClock "0:00:17"]
[Board "114"]

1. e4 {[%clk 0:03:00]}  c5 {[%clk 0:02:59]} 2. c3 {[%clk 0:03:00]}  d5 {[%clk 0:02:55]} 3. exd5 {[%clk 0:03:00]}  Qxd5 {[%clk 0:02:56]} 4. d4 {[%clk 0:03:00]}  Nf6 {[%clk 0:02:55]} 5. Nf3 {[%clk 0:03:00]}  e6 {[%clk 0:02:55]} 6. Na3 {[%clk 0:02:58]}  Be7 {[%clk 0:02:46]} 7. Nb5 {[%clk 0:02:54]}  Qd8 {[%clk 0:02:45]} 8. Bf4 {[%clk 0:02:31]}  Nd5 {[%clk 0:02:32]} 9. Bxb8 {[%clk 0:02:22]}  Rxb8 {[%clk 0:02:30]} 10. Nxa7 {[%clk 0:02:22]}  O-O {[%clk 0:02:24]} 11. Nxc8 {[%clk 0:02:22]}  Qxc8 {[%clk 0:02:23]} 12. Be2 {[%clk 0:02:20]}  b5 {[%clk 0:01:49]} 13. O-O {[%clk 0:02:15]}  b4 {[%clk 0:01:48]} 14. cxb4 {[%clk 0:02:04]}  cxd4 {[%clk 0:01:47]} 15. b5 {[%clk 0:01:50]}  Nf4 {[%clk 0:01:21]} 16. Rc1 {[%clk 0:01:26]}  Qb7 {[%clk 0:01:18]} 17. Bc4 {[%clk 0:01:04]}  Rfd8 {[%clk 0:01:12]} 18. Qd2 {[%clk 0:00:58]}  e5 {[%clk 0:01:09]} 19. Rfe1 {[%clk 0:00:55]}  Bg5 {[%clk 0:00:48]} 20. h4 {[%clk 0:00:33]}  Nh3+ {[%clk 0:00:46]} 21. gxh3 {[%clk 0:00:33]}  Bxd2 {[%clk 0:00:45]} 22. Nxd2 {[%clk 0:00:33]}  Re8 {[%clk 0:00:29]} 23. Ne4 {[%clk 0:00:33]}  Qb6 {[%clk 0:00:27]} 24. Ng5 {[%clk 0:00:31]}  Re7 {[%clk 0:00:27]} 25. a4 {[%clk 0:00:29]}  Rf8 {[%clk 0:00:24]} 26. b4 {[%clk 0:00:28]}  Qf6 {[%clk 0:00:23]} 27. a5 {[%clk 0:00:26]}  h6 {[%clk 0:00:22]} 28. Ne4 {[%clk 0:00:26]}  Qxh4 {[%clk 0:00:22]} 29. a6 {[%clk 0:00:26]}  Rb8 {[%clk 0:00:17]} 30. Ra1 {[%clk 0:00:24]}  Ra7 {[%clk 0:00:17]} 31. Rec1 {[%clk 0:00:19]}  Kf8 {[%clk 0:00:15]} 32. Bd5 {[%clk 0:00:19]}  f5 {[%clk 0:00:14]} 33. Nd6 {[%clk 0:00:17]}  Qg5+ {[%clk 0:00:14]} 34. Kf1 {[%clk 0:00:15]}  Qd8 {[%clk 0:00:13]} 35. b6 {[%clk 0:00:15]}  Rxb6 {[%clk 0:00:13]} 36. Rc8 {[%clk 0:00:15]}  Rxd6 {[%clk 0:00:13]} 37. Rxd8+ {[%clk 0:00:15]}  Rxd8 {[%clk 0:00:12]} 38. Bb7 {[%clk 0:00:16]}  Rb8 {[%clk 0:00:12]} 39. b5 {[%clk 0:00:16]}  Raxb7 {[%clk 0:00:12]} 40. axb7 {[%clk 0:00:15]}  Rxb7 {[%clk 0:00:12]} 41. Rb1 {[%clk 0:00:15]}  Ke7 {[%clk 0:00:12]} 42. Ke2 {[%clk 0:00:15]}  Kd6 {[%clk 0:00:13]} 43. Kd3 {[%clk 0:00:15]}  Kc5 {[%clk 0:00:13]} 44. f4 {[%clk 0:00:15]}  e4+ {[%clk 0:00:12]} 45. Kd2 {[%clk 0:00:15]}  Rxb5 {[%clk 0:00:12]} 46. Rc1+ {[%clk 0:00:15]}  Kd5 {[%clk 0:00:12]} 47. Rg1 {[%clk 0:00:15]}  Rb2+ {[%clk 0:00:13]} 48. Kd1 {[%clk 0:00:15]}  e3 {[%clk 0:00:12]} 49. Rxg7 {[%clk 0:00:15]}  Ke4 {[%clk 0:00:12]} 50. Kc1 {[%clk 0:00:14]}  Rh2 {[%clk 0:00:11]} 51. Re7+ {[%clk 0:00:13]}  Kd3 {[%clk 0:00:10]} 52. Re6 {[%clk 0:00:12]}  Rh1+ {[%clk 0:00:09]} 53. Kb2 {[%clk 0:00:12]}  e2 {[%clk 0:00:09]} 54. Kb3 {[%clk 0:00:12]}  e1=Q {[%clk 0:00:10]} 55. Rxe1 {[%clk 0:00:11]}  Rxe1 {[%clk 0:00:10]} 56. Kb4 {[%clk 0:00:12]}  Re4 {[%clk 0:00:11]} 57. Kc5 {[%clk 0:00:12]}  Rxf4 {[%clk 0:00:11]} 58. Kd5 {[%clk 0:00:12]}  Rh4 {[%clk 0:00:12]} 59. Ke5 {[%clk 0:00:12]}  Rxh3 {[%clk 0:00:12]} 60. Kxf5 {[%clk 0:00:13]}  Re3 {[%clk 0:00:12]} 61. Kf4 {[%clk 0:00:13]}  Re8 {[%clk 0:00:13]} 62. Kf5 {[%clk 0:00:13]}  Kc4 {[%clk 0:00:13]} 63. Kg6 {[%clk 0:00:13]}  d3 {[%clk 0:00:14]} 64. Kxh6 {[%clk 0:00:14]}  d2 {[%clk 0:00:14]} 65. Kg6 {[%clk 0:00:14]}  d1=Q {[%clk 0:00:15]} 66. Kf7 {[%clk 0:00:15]}  Qd7+ {[%clk 0:00:15]} 67. Kf6 {[%clk 0:00:15]}  Re6+ {[%clk 0:00:16]} 68. Kf5 {[%clk 0:00:13]}  Qd5+ {[%clk 0:00:17]} 0-1


[Site "https://www.chess.com"]